[Event "Titled Tuesday Blitz January 31 Early 2023"]
[White "Hasangatin, Ramil"]
[Black "Alfaro, William"]
[WhiteFideId "4122160"]
[BlackFideId "6100457"]
[WhiteElo "2457"]
[BlackElo "2134"]
[Result "1-0"]
[Round "04"]
[TimeControl "180+2"]
[Date "2023.01.31"]
[WhiteClock "0:00:52"]
[BlackClock "0:00:28"]

1. e4 {[%clk 0:03:00]}  Nf6 {[%clk 0:02:52]} 2. e5 {[%clk 0:02:59]}  Nd5 {[%clk 0:02:52]} 3. d4 {[%clk 0:02:59]}  d6 {[%clk 0:02:39]} 4. Nf3 {[%clk 0:03:00]}  Bg4 {[%clk 0:02:27]} 5. Be2 {[%clk 0:02:58]}  Nc6 {[%clk 0:02:20]} 6. c4 {[%clk 0:02:54]}  Nb6 {[%clk 0:02:19]} 7. e6 {[%clk 0:02:54]}  fxe6 {[%clk 0:02:09]} 8. Be3 {[%clk 0:02:53]}  g6 {[%clk 0:02:07]} 9. Ng5 {[%clk 0:02:51]}  Bxe2 {[%clk 0:02:01]} 10. Qxe2 {[%clk 0:02:52]}  Qd7 {[%clk 0:01:53]} 11. Nd2 {[%clk 0:02:28]}  Bg7 {[%clk 0:01:47]} 12. Nb3 {[%clk 0:02:19]}  O-O-O {[%clk 0:01:39]} 13. O-O-O {[%clk 0:02:17]}  d5 {[%clk 0:01:35]} 14. Nc5 {[%clk 0:02:03]}  Qd6 {[%clk 0:01:29]} 15. Nf7 {[%clk 0:02:02]}  Nxc4 {[%clk 0:01:19]} 16. Nxd6+ {[%clk 0:01:59]}  Rxd6 {[%clk 0:01:18]} 17. b3 {[%clk 0:01:52]}  Nxe3 {[%clk 0:01:15]} 18. fxe3 {[%clk 0:01:52]}  e5 {[%clk 0:01:14]} 19. Qg4+ {[%clk 0:01:47]}  Kb8 {[%clk 0:01:13]} 20. Nd7+ {[%clk 0:01:47]}  Ka8 {[%clk 0:01:12]} 21. Nxe5 {[%clk 0:01:46]}  Nxe5 {[%clk 0:01:09]} 22. dxe5 {[%clk 0:01:47]}  Bxe5 {[%clk 0:01:09]} 23. Rhf1 {[%clk 0:01:43]}  Bf6 {[%clk 0:01:07]} 24. Rf3 {[%clk 0:01:32]}  Rhd8 {[%clk 0:01:03]} 25. Rdf1 {[%clk 0:01:32]}  b6 {[%clk 0:01:03]} 26. Qh3 {[%clk 0:01:29]}  h5 {[%clk 0:01:01]} 27. g4 {[%clk 0:01:28]}  Rh8 {[%clk 0:00:55]} 28. g5 {[%clk 0:01:24]}  Bxg5 {[%clk 0:00:53]} 29. Rf8+ {[%clk 0:01:24]}  Rxf8 {[%clk 0:00:51]} 30. Rxf8+ {[%clk 0:01:24]}  Kb7 {[%clk 0:00:52]} 31. Qc8+ {[%clk 0:01:23]}  Kc6 {[%clk 0:00:52]} 32. Qe8+ {[%clk 0:01:21]}  Kc5 {[%clk 0:00:52]} 33. Rf4 {[%clk 0:01:09]}  Bxf4 {[%clk 0:00:50]} 34. exf4 {[%clk 0:01:09]}  d4 {[%clk 0:00:51]} 35. Qxe7 {[%clk 0:01:07]}  Kd5 {[%clk 0:00:48]} 36. Qe5+ {[%clk 0:01:02]}  Kc6 {[%clk 0:00:47]} 37. Kd2 {[%clk 0:01:03]}  a5 {[%clk 0:00:43]} 38. Kd3 {[%clk 0:01:02]}  Rd5 {[%clk 0:00:39]} 39. Qe4 {[%clk 0:01:00]}  Kc5 {[%clk 0:00:38]} 40. Qxg6 {[%clk 0:01:00]}  c6 {[%clk 0:00:38]} 41. h4 {[%clk 0:00:58]}  Kb5 {[%clk 0:00:34]} 42. a3 {[%clk 0:00:57]}  a4 {[%clk 0:00:31]} 43. bxa4+ {[%clk 0:00:56]}  Kc5 {[%clk 0:00:31]} 44. Qe6 {[%clk 0:00:52]}  Rd6 {[%clk 0:00:28]} 45. Qc4# {[%clk 0:00:52]} 1-0


[Site "https://www.chess.com"]

[Event "Titled Tuesday Blitz January 31 Early 2023"]
[White "Aung Thant Zin"]
[Black "Csonka, Balazs"]
[WhiteFideId "13000063"]
[BlackFideId "742910"]
[WhiteElo "2268"]
[BlackElo "2496"]
[Result "0-1"]
[Round "04"]
[TimeControl "180+2"]
[Date "2023.01.31"]
[WhiteClock "0:00:12"]
[BlackClock "0:00:05"]

1. e4 {[%clk 0:02:59]}  Nf6 {[%clk 0:02:59]} 2. e5 {[%clk 0:02:58]}  Nd5 {[%clk 0:02:59]} 3. Nc3 {[%clk 0:02:58]}  Nxc3 {[%clk 0:02:56]} 4. dxc3 {[%clk 0:02:59]}  d6 {[%clk 0:02:43]} 5. Nf3 {[%clk 0:02:56]}  Nc6 {[%clk 0:02:43]} 6. Bf4 {[%clk 0:02:56]}  Bg4 {[%clk 0:02:39]} 7. Be2 {[%clk 0:02:55]}  e6 {[%clk 0:02:36]} 8. exd6 {[%clk 0:02:51]}  cxd6 {[%clk 0:02:31]} 9. Qd2 {[%clk 0:02:50]}  Be7 {[%clk 0:02:14]} 10. O-O-O {[%clk 0:02:48]}  e5 {[%clk 0:02:14]} 11. Be3 {[%clk 0:02:42]}  O-O {[%clk 0:02:10]} 12. h3 {[%clk 0:02:41]}  Be6 {[%clk 0:02:10]} 13. Kb1 {[%clk 0:02:40]}  d5 {[%clk 0:02:01]} 14. Ng5 {[%clk 0:02:21]}  Bxg5 {[%clk 0:01:44]} 15. Bxg5 {[%clk 0:02:21]}  f6 {[%clk 0:01:44]} 16. Bh4 {[%clk 0:02:17]}  Qa5 {[%clk 0:01:39]} 17. a3 {[%clk 0:01:57]}  Rad8 {[%clk 0:01:16]} 18. f3 {[%clk 0:01:57]}  Qc5 {[%clk 0:01:09]} 19. Qe1 {[%clk 0:01:49]}  Rfe8 {[%clk 0:01:02]} 20. Bf2 {[%clk 0:01:48]}  d4 {[%clk 0:00:56]} 21. cxd4 {[%clk 0:01:23]}  exd4 {[%clk 0:00:53]} 22. Qf1 {[%clk 0:01:19]}  Na5 {[%clk 0:00:36]} 23. Bb5 {[%clk 0:00:58]}  Qd5 {[%clk 0:00:19]} 24. c4 {[%clk 0:00:52]}  Nxc4 {[%clk 0:00:16]} 25. Bxc4 {[%clk 0:00:46]}  Qxc4 {[%clk 0:00:13]} 26. Qxc4 {[%clk 0:00:46]}  Bxc4 {[%clk 0:00:13]} 27. Rxd4 {[%clk 0:00:47]}  Rxd4 {[%clk 0:00:12]} 28. Bxd4 {[%clk 0:00:47]}  Re2 {[%clk 0:00:13]} 29. g4 {[%clk 0:00:37]}  a5 {[%clk 0:00:10]} 30. h4 {[%clk 0:00:33]}  a4 {[%clk 0:00:10]} 31. h5 {[%clk 0:00:32]}  Bd5 {[%clk 0:00:10]} 32. Rf1 {[%clk 0:00:31]}  Rd2 {[%clk 0:00:10]} 33. Bc3 {[%clk 0:00:28]}  Rd3 {[%clk 0:00:10]} 34. f4 {[%clk 0:00:28]}  Bg2 {[%clk 0:00:09]} 35. Rg1 {[%clk 0:00:26]}  Be4 {[%clk 0:00:08]} 36. Ka1 {[%clk 0:00:27]}  Rh3 {[%clk 0:00:05]} 37. Ka2 {[%clk 0:00:20]}  Bd5+ {[%clk 0:00:05]} 38. Ka1 {[%clk 0:00:20]}  Be4 {[%clk 0:00:05]} 39. Ka2 {[%clk 0:00:20]}  Kf7 {[%clk 0:00:05]} 40. Ka1 {[%clk 0:00:19]}  Bd5 {[%clk 0:00:05]} 41. Kb1 {[%clk 0:00:18]}  Be4+ {[%clk 0:00:05]} 42. Ka1 {[%clk 0:00:19]}  Rf3 {[%clk 0:00:05]} 43. Bd2 {[%clk 0:00:17]}  Rf2 {[%clk 0:00:05]} 44. Bc3 {[%clk 0:00:17]}  Rxf4 {[%clk 0:00:05]} 45. g5 {[%clk 0:00:17]}  fxg5 {[%clk 0:00:05]} 46. Rxg5 {[%clk 0:00:12]}  Rf1+ {[%clk 0:00:05]} 47. Ka2 {[%clk 0:00:12]}  Bb1+ {[%clk 0:00:05]} 48. Ka1 {[%clk 0:00:12]}  Bc2+ {[%clk 0:00:05]} 0-1


[Site "https://www.chess.com"]

[Event "Titled Tuesday Blitz January 31 Early 2023"]
[White "Ristic, Nebojsa B"]
[Black "Kamsky, Gata"]
[WhiteFideId "935468"]
[BlackFideId "2000024"]
[WhiteElo "2236"]
[BlackElo "2665"]
[Result "0-1"]
[Round "04"]
[TimeControl "180+2"]
[Date "2023.01.31"]
[WhiteClock "0:00:12"]
[BlackClock "0:00:31"]

1. d4 {[%clk 0:02:59]}  f5 {[%clk 0:02:53]} 2. Bf4 {[%clk 0:02:57]}  Nf6 {[%clk 0:02:52]} 3. e3 {[%clk 0:02:56]}  g6 {[%clk 0:02:52]} 4. h4 {[%clk 0:02:53]}  h6 {[%clk 0:02:31]} 5. Nf3 {[%clk 0:02:49]}  d6 {[%clk 0:02:31]} 6. Nc3 {[%clk 0:02:39]}  Bg7 {[%clk 0:02:27]} 7. Bd3 {[%clk 0:02:39]}  Nc6 {[%clk 0:02:24]} 8. d5 {[%clk 0:02:32]}  Nb4 {[%clk 0:02:16]} 9. Bc4 {[%clk 0:02:18]}  c6 {[%clk 0:02:15]} 10. O-O {[%clk 0:01:41]}  cxd5 {[%clk 0:01:56]} 11. Nxd5 {[%clk 0:01:40]}  Nbxd5 {[%clk 0:01:56]} 12. Bxd5 {[%clk 0:01:40]}  Nxd5 {[%clk 0:01:56]} 13. Qxd5 {[%clk 0:01:41]}  Qb6 {[%clk 0:01:51]} 14. Rab1 {[%clk 0:01:21]}  Bd7 {[%clk 0:01:45]} 15. c4 {[%clk 0:01:03]}  Qc6 {[%clk 0:01:40]} 16. Nd4 {[%clk 0:00:42]}  Qxd5 {[%clk 0:01:39]} 17. cxd5 {[%clk 0:00:43]}  Kf7 {[%clk 0:01:30]} 18. Rbc1 {[%clk 0:00:42]}  Rhc8 {[%clk 0:01:29]} 19. Rfd1 {[%clk 0:00:38]}  Rxc1 {[%clk 0:01:02]} 20. Rxc1 {[%clk 0:00:39]}  Rc8 {[%clk 0:01:02]} 21. Rxc8 {[%clk 0:00:35]}  Bxc8 {[%clk 0:01:02]} 22. Kf1 {[%clk 0:00:32]}  Bxd4 {[%clk 0:00:57]} 23. exd4 {[%clk 0:00:33]}  Kg7 {[%clk 0:00:57]} 24. Ke2 {[%clk 0:00:29]}  b6 {[%clk 0:00:57]} 25. Kd3 {[%clk 0:00:28]}  Ba6+ {[%clk 0:00:55]} 26. Kc3 {[%clk 0:00:28]}  Bf1 {[%clk 0:00:54]} 27. g3 {[%clk 0:00:28]}  h5 {[%clk 0:00:46]} 28. Bg5 {[%clk 0:00:27]}  Kf7 {[%clk 0:00:46]} 29. a4 {[%clk 0:00:22]}  Ke8 {[%clk 0:00:43]} 30. b4 {[%clk 0:00:16]}  a6 {[%clk 0:00:42]} 31. a5 {[%clk 0:00:15]}  b5 {[%clk 0:00:38]} 32. Kd2 {[%clk 0:00:12]}  Bg2 {[%clk 0:00:38]} 33. Ke3 {[%clk 0:00:11]}  Bxd5 {[%clk 0:00:39]} 34. f4 {[%clk 0:00:11]}  Kd7 {[%clk 0:00:38]} 35. Kd3 {[%clk 0:00:11]}  e6 {[%clk 0:00:37]} 36. Ke3 {[%clk 0:00:11]}  Kc6 {[%clk 0:00:38]} 37. Bf6 {[%clk 0:00:12]}  Bc4 {[%clk 0:00:37]} 38. Bg7 {[%clk 0:00:11]}  Kd5 {[%clk 0:00:37]} 39. Bf6 {[%clk 0:00:11]}  Bf1 {[%clk 0:00:37]} 40. Kd2 {[%clk 0:00:11]}  Kc4 {[%clk 0:00:36]} 41. Be7 {[%clk 0:00:11]}  Kxb4 {[%clk 0:00:35]} 42. Bxd6+ {[%clk 0:00:11]}  Kxa5 {[%clk 0:00:36]} 43. Kc3 {[%clk 0:00:12]}  Kb6 {[%clk 0:00:35]} 44. Bc5+ {[%clk 0:00:13]}  Kc6 {[%clk 0:00:33]} 45. Kb4 {[%clk 0:00:14]}  Kd5 {[%clk 0:00:33]} 46. Ka5 {[%clk 0:00:14]}  Ke4 {[%clk 0:00:32]} 47. Kxa6 {[%clk 0:00:13]}  b4+ {[%clk 0:00:32]} 48. Ka5 {[%clk 0:00:14]}  b3 {[%clk 0:00:32]} 49. Ba3 {[%clk 0:00:14]}  Bc4 {[%clk 0:00:31]} 50. Bb2 {[%clk 0:00:14]}  Bd5 {[%clk 0:00:32]} 51. Kb4 {[%clk 0:00:14]}  Kf3 {[%clk 0:00:32]} 52. Kc3 {[%clk 0:00:12]}  Kxg3 {[%clk 0:00:33]} 53. Bc1 {[%clk 0:00:12]}  Kxh4 {[%clk 0:00:32]} 54. Kd3 {[%clk 0:00:10]}  Kg3 {[%clk 0:00:31]} 55. Ke3 {[%clk 0:00:11]}  h4 {[%clk 0:00:31]} 56. Bd2 {[%clk 0:00:11]}  h3 {[%clk 0:00:31]} 57. Be1+ {[%clk 0:00:12]}  Kg2 {[%clk 0:00:31]} 0-1


[Site "https://www.chess.com"]

[Event "Titled Tuesday Blitz January 31 Early 2023"]
[White "Yuan, Qingyu"]
[Black "Elgersma, Onno"]
[WhiteFideId "8609772"]
[BlackFideId "1053531"]
[WhiteElo "2373"]
[BlackElo "2276"]
[Result "1-0"]
[Round "04"]
[TimeControl "180+2"]
[Date "2023.01.31"]
[WhiteClock "0:00:21"]
[BlackClock "0:00:08"]

1. e4 {[%clk 0:03:00]}  c6 {[%clk 0:02:59]} 2. d4 {[%clk 0:03:00]}  d5 {[%clk 0:03:00]} 3. exd5 {[%clk 0:03:01]}  cxd5 {[%clk 0:03:00]} 4. Bd3 {[%clk 0:03:01]}  Nc6 {[%clk 0:03:00]} 5. c3 {[%clk 0:03:01]}  Qc7 {[%clk 0:02:59]} 6. h3 {[%clk 0:02:59]}  Nf6 {[%clk 0:02:58]} 7. Nf3 {[%clk 0:02:59]}  g6 {[%clk 0:02:58]} 8. O-O {[%clk 0:02:57]}  Bf5 {[%clk 0:02:59]} 9. Re1 {[%clk 0:02:40]}  Bg7 {[%clk 0:02:57]} 10. Bxf5 {[%clk 0:02:38]}  gxf5 {[%clk 0:02:58]} 11. Nh4 {[%clk 0:02:39]}  f4 {[%clk 0:00:56]} 12. Qf3 {[%clk 0:02:31]}  Rg8 {[%clk 0:00:55]} 13. Bxf4 {[%clk 0:02:28]}  Qd7 {[%clk 0:00:55]} 14. Nd2 {[%clk 0:02:23]}  O-O-O {[%clk 0:00:55]} 15. Bh2 {[%clk 0:02:14]}  Bh6 {[%clk 0:00:45]} 16. Nb3 {[%clk 0:02:00]}  Ne4 {[%clk 0:00:44]} 17. Nf5 {[%clk 0:01:48]}  Bf8 {[%clk 0:00:37]} 18. Qf4 {[%clk 0:01:41]}  e6 {[%clk 0:00:36]} 19. Nh6 {[%clk 0:01:02]}  Bxh6 {[%clk 0:00:10]} 20. Qxh6 {[%clk 0:01:00]}  Rg6 {[%clk 0:00:10]} 21. Qe3 {[%clk 0:00:46]}  Rdg8 {[%clk 0:00:10]} 22. g3 {[%clk 0:00:46]}  f5 {[%clk 0:00:09]} 23. Nc5 {[%clk 0:00:44]}  Qf7 {[%clk 0:00:09]} 24. Nd3 {[%clk 0:00:43]}  h5 {[%clk 0:00:08]} 25. h4 {[%clk 0:00:42]}  Rg4 {[%clk 0:00:08]} 26. Kh1 {[%clk 0:00:43]}  Ne7 {[%clk 0:00:07]} 27. Rg1 {[%clk 0:00:42]}  Ng6 {[%clk 0:00:07]} 28. f3 {[%clk 0:00:38]}  f4 {[%clk 0:00:07]} 29. Nxf4 {[%clk 0:00:24]}  Nxf4 {[%clk 0:00:07]} 30. fxg4 {[%clk 0:00:20]}  Nh3 {[%clk 0:00:04]} 31. Rgf1 {[%clk 0:00:20]}  Qg6 {[%clk 0:00:03]} 32. g5 {[%clk 0:00:20]}  e5 {[%clk 0:00:02]} 33. dxe5 {[%clk 0:00:19]}  Qc6 {[%clk 0:00:03]} 34. Qd4 {[%clk 0:00:19]}  Re8 {[%clk 0:00:01]} 35. Rae1 {[%clk 0:00:18]}  Nef2+ {[%clk 0:00:02]} 36. Rxf2 {[%clk 0:00:18]}  Nxf2+ {[%clk 0:00:03]} 37. Qxf2 {[%clk 0:00:18]}  d4+ {[%clk 0:00:03]} 38. Qg2 {[%clk 0:00:19]}  dxc3 {[%clk 0:00:04]} 39. Qxc6+ {[%clk 0:00:19]}  bxc6 {[%clk 0:00:05]} 40. bxc3 {[%clk 0:00:19]}  Kc7 {[%clk 0:00:05]} 41. g4 {[%clk 0:00:20]}  hxg4 {[%clk 0:00:05]} 42. Bg3 {[%clk 0:00:20]}  Kd7 {[%clk 0:00:06]} 43. Kg2 {[%clk 0:00:20]}  Ke6 {[%clk 0:00:07]} 44. Rd1 {[%clk 0:00:20]}  Rf8 {[%clk 0:00:06]} 45. Rd6+ {[%clk 0:00:20]}  Ke7 {[%clk 0:00:07]} 46. Rf6 {[%clk 0:00:21]}  Rd8 {[%clk 0:00:08]} 47. Rf2 {[%clk 0:00:20]}  Rd3 {[%clk 0:00:08]} 48. g6 {[%clk 0:00:21]} 1-0


[Site "https://www.chess.com"]

[Event "Titled Tuesday Blitz January 31 Early 2023"]
[White "Shuvalov, Evgenij"]
[Black "Ozen, Bahadir"]
[WhiteFideId "4187237"]
[BlackFideId "6337058"]
[WhiteElo "2038"]
[BlackElo "2369"]
[Result "0-1"]
[Round "04"]
[TimeControl "180+2"]
[Date "2023.01.31"]
[WhiteClock "0:00:41"]
[BlackClock "0:00:53"]

1. d4 {[%clk 0:02:55]}  d6 {[%clk 0:02:59]} 2. Nf3 {[%clk 0:02:52]}  Nf6 {[%clk 0:02:59]} 3. c4 {[%clk 0:02:52]}  Nbd7 {[%clk 0:02:59]} 4. Nc3 {[%clk 0:02:52]}  e5 {[%clk 0:02:57]} 5. e4 {[%clk 0:02:51]}  c6 {[%clk 0:02:57]} 6. Be2 {[%clk 0:02:49]}  Be7 {[%clk 0:02:56]} 7. O-O {[%clk 0:02:49]}  O-O {[%clk 0:02:57]} 8. Re1 {[%clk 0:02:49]}  a6 {[%clk 0:02:57]} 9. Bf1 {[%clk 0:02:44]}  b5 {[%clk 0:02:53]} 10. a3 {[%clk 0:02:45]}  Bb7 {[%clk 0:02:52]} 11. d5 {[%clk 0:02:41]}  cxd5 {[%clk 0:02:50]} 12. cxd5 {[%clk 0:02:39]}  Re8 {[%clk 0:02:16]} 13. b4 {[%clk 0:02:38]}  Rc8 {[%clk 0:02:14]} 14. Bd2 {[%clk 0:02:38]}  Nb6 {[%clk 0:02:14]} 15. a4 {[%clk 0:02:34]}  Nc4 {[%clk 0:02:07]} 16. axb5 {[%clk 0:02:30]}  axb5 {[%clk 0:02:07]} 17. Nxb5 {[%clk 0:02:28]}  Qb6 {[%clk 0:02:08]} 18. Na7 {[%clk 0:02:22]}  Nxd2 {[%clk 0:02:06]} 19. Nxd2 {[%clk 0:02:18]}  Ra8 {[%clk 0:01:54]} 20. Nc4 {[%clk 0:02:06]}  Qxb4 {[%clk 0:01:52]} 21. Rb1 {[%clk 0:02:04]}  Qc5 {[%clk 0:01:52]} 22. Rxb7 {[%clk 0:01:57]}  Rxa7 {[%clk 0:01:52]} 23. Rxa7 {[%clk 0:01:53]}  Qxa7 {[%clk 0:01:53]} 24. Qd3 {[%clk 0:01:46]}  Rb8 {[%clk 0:01:44]} 25. Rb1 {[%clk 0:01:45]}  Rxb1 {[%clk 0:01:43]} 26. Qxb1 {[%clk 0:01:46]}  g6 {[%clk 0:01:41]} 27. h3 {[%clk 0:01:45]}  Kg7 {[%clk 0:01:34]} 28. Bd3 {[%clk 0:01:39]}  Qd4 {[%clk 0:01:34]} 29. Nd2 {[%clk 0:01:34]}  Bd8 {[%clk 0:01:31]} 30. Nf3 {[%clk 0:01:34]}  Qc5 {[%clk 0:01:21]} 31. Qe1 {[%clk 0:01:27]}  Bb6 {[%clk 0:01:21]} 32. Bb1 {[%clk 0:01:26]}  Qc4 {[%clk 0:01:14]} 33. Qf1 {[%clk 0:01:11]}  Qb4 {[%clk 0:01:10]} 34. Bd3 {[%clk 0:01:07]}  Nh5 {[%clk 0:01:09]} 35. Kh2 {[%clk 0:00:57]}  Qb2 {[%clk 0:01:04]} 36. Kg1 {[%clk 0:00:47]}  Nf4 {[%clk 0:01:04]} 37. Bb1 {[%clk 0:00:47]}  Bxf2+ {[%clk 0:01:01]} 38. Qxf2 {[%clk 0:00:46]}  Qxb1+ {[%clk 0:01:01]} 39. Kh2 {[%clk 0:00:47]}  Qxe4 {[%clk 0:01:01]} 40. Qd2 {[%clk 0:00:45]}  Qxd5 {[%clk 0:00:59]} 41. Qxd5 {[%clk 0:00:45]}  Nxd5 {[%clk 0:00:59]} 42. Kg3 {[%clk 0:00:45]}  f5 {[%clk 0:00:56]} 43. Kf2 {[%clk 0:00:44]}  Kf6 {[%clk 0:00:56]} 44. h4 {[%clk 0:00:43]}  h6 {[%clk 0:00:56]} 45. g3 {[%clk 0:00:43]}  Ke6 {[%clk 0:00:56]} 46. Nd2 {[%clk 0:00:42]}  Nf6 {[%clk 0:00:55]} 47. Nc4 {[%clk 0:00:41]}  g5 {[%clk 0:00:53]} 48. hxg5 {[%clk 0:00:41]}  hxg5 {[%clk 0:00:54]} 49. Nb6 {[%clk 0:00:41]}  Ne4+ {[%clk 0:00:53]} 50. Kf3 {[%clk 0:00:41]}  g4+ {[%clk 0:00:53]} 51. Kg2 {[%clk 0:00:41]}  d5 {[%clk 0:00:53]} 0-1


[Site "https://www.chess.com"]

[Event "Titled Tuesday Blitz January 31 Early 2023"]
[White "Pakleza, Zbigniew"]
[Black "Lehtosaari, Mauri"]
[WhiteFideId "1119290"]
[BlackFideId "501999"]
[WhiteElo "2494"]
[BlackElo "2176"]
[Result "1-0"]
[Round "04"]
[TimeControl "180+2"]
[Date "2023.01.31"]
[WhiteClock "0:00:13"]
[BlackClock "0:00:04"]

1. d4 {[%clk 0:03:00]}  d5 {[%clk 0:02:57]} 2. Bf4 {[%clk 0:03:00]}  c5 {[%clk 0:02:56]} 3. e3 {[%clk 0:03:01]}  Nc6 {[%clk 0:02:56]} 4. c3 {[%clk 0:03:01]}  Qb6 {[%clk 0:02:46]} 5. Qb3 {[%clk 0:03:00]}  c4 {[%clk 0:02:46]} 6. Qc2 {[%clk 0:03:01]}  Nf6 {[%clk 0:02:20]} 7. Nd2 {[%clk 0:02:59]}  g6 {[%clk 0:02:18]} 8. e4 {[%clk 0:02:55]}  e6 {[%clk 0:02:05]} 9. e5 {[%clk 0:02:50]}  Nh5 {[%clk 0:01:55]} 10. Be3 {[%clk 0:02:46]}  Bd7 {[%clk 0:01:36]} 11. g4 {[%clk 0:02:33]}  Ng7 {[%clk 0:01:35]} 12. Bg2 {[%clk 0:02:33]}  h5 {[%clk 0:01:34]} 13. h3 {[%clk 0:02:32]}  hxg4 {[%clk 0:01:32]} 14. hxg4 {[%clk 0:02:33]}  Rxh1 {[%clk 0:01:33]} 15. Bxh1 {[%clk 0:02:34]}  O-O-O {[%clk 0:01:32]} 16. f4 {[%clk 0:02:23]}  Be7 {[%clk 0:01:27]} 17. Ngf3 {[%clk 0:02:23]}  Rh8 {[%clk 0:01:26]} 18. Bg2 {[%clk 0:02:22]}  Qd8 {[%clk 0:01:20]} 19. Ke2 {[%clk 0:02:13]}  Ne8 {[%clk 0:01:16]} 20. Rh1 {[%clk 0:02:08]}  Nc7 {[%clk 0:01:11]} 21. Qd1 {[%clk 0:02:06]}  b5 {[%clk 0:00:59]} 22. a3 {[%clk 0:02:06]}  a5 {[%clk 0:00:54]} 23. Ng5 {[%clk 0:01:51]}  Bxg5 {[%clk 0:00:52]} 24. fxg5 {[%clk 0:01:52]}  Qg8 {[%clk 0:00:43]} 25. Rh6 {[%clk 0:01:45]}  Qe8 {[%clk 0:00:19]} 26. Qf1 {[%clk 0:01:43]}  Rf8 {[%clk 0:00:18]} 27. Qf6 {[%clk 0:01:35]}  Nd8 {[%clk 0:00:15]} 28. Rh7 {[%clk 0:01:31]}  Rg8 {[%clk 0:00:15]} 29. Nf1 {[%clk 0:01:07]}  Bc6 {[%clk 0:00:14]} 30. Ng3 {[%clk 0:01:05]}  Na6 {[%clk 0:00:12]} 31. Kd2 {[%clk 0:00:59]}  Qd7 {[%clk 0:00:12]} 32. Ne2 {[%clk 0:00:59]}  Qe8 {[%clk 0:00:12]} 33. Qf1 {[%clk 0:00:45]}  Qf8 {[%clk 0:00:10]} 34. Bf3 {[%clk 0:00:39]}  Qe8 {[%clk 0:00:10]} 35. Qh1 {[%clk 0:00:36]}  Qe7 {[%clk 0:00:10]} 36. Qh6 {[%clk 0:00:33]}  Qe8 {[%clk 0:00:10]} 37. Qh2 {[%clk 0:00:33]}  Qe7 {[%clk 0:00:11]} 38. Ke1 {[%clk 0:00:30]}  Qe8 {[%clk 0:00:11]} 39. Kf2 {[%clk 0:00:31]}  Qe7 {[%clk 0:00:11]} 40. Kg3 {[%clk 0:00:30]}  Qe8 {[%clk 0:00:11]} 41. Qf2 {[%clk 0:00:28]}  Qe7 {[%clk 0:00:11]} 42. Qe1 {[%clk 0:00:28]}  Qe8 {[%clk 0:00:12]} 43. Qd2 {[%clk 0:00:29]}  Qe7 {[%clk 0:00:11]} 44. Qd1 {[%clk 0:00:29]}  Qe8 {[%clk 0:00:11]} 45. b3 {[%clk 0:00:24]}  Qd7 {[%clk 0:00:09]} 46. a4 {[%clk 0:00:21]}  cxb3 {[%clk 0:00:06]} 47. axb5 {[%clk 0:00:18]}  Bxb5 {[%clk 0:00:07]} 48. Qxb3 {[%clk 0:00:19]}  Qc6 {[%clk 0:00:06]} 49. Qa3 {[%clk 0:00:15]}  Qc7 {[%clk 0:00:04]} 50. Nf4 {[%clk 0:00:13]} 1-0


[Site "https://www.chess.com"]

[Event "Titled Tuesday Blitz January 31 Early 2023"]
[White "Gurevich, Dmitry"]
[Black "Pulpan, Jakub"]
[WhiteFideId "2000407"]
[BlackFideId "302759"]
[WhiteElo "2393"]
[BlackElo "2427"]
[Result "0-1"]
[Round "04"]
[TimeControl "180+2"]
[Date "2023.01.31"]
[WhiteClock "0:00:37"]
[BlackClock "0:02:02"]

1. d4 {[%clk 0:03:00]}  Nf6 {[%clk 0:02:53]} 2. c4 {[%clk 0:03:00]}  e6 {[%clk 0:02:52]} 3. Nc3 {[%clk 0:02:59]}  d5 {[%clk 0:02:53]} 4. Nf3 {[%clk 0:02:58]}  c5 {[%clk 0:02:53]} 5. e3 {[%clk 0:02:54]}  Nc6 {[%clk 0:02:51]} 6. a3 {[%clk 0:02:53]}  b6 {[%clk 0:02:47]} 7. cxd5 {[%clk 0:02:50]}  exd5 {[%clk 0:02:47]} 8. Bb5 {[%clk 0:02:48]}  Bd7 {[%clk 0:02:46]} 9. O-O {[%clk 0:02:43]}  c4 {[%clk 0:02:43]} 10. b3 {[%clk 0:02:37]}  a6 {[%clk 0:02:41]} 11. Bxc6 {[%clk 0:02:34]}  Bxc6 {[%clk 0:02:42]} 12. Ne5 {[%clk 0:02:32]}  Rc8 {[%clk 0:02:43]} 13. a4 {[%clk 0:02:20]}  Bb4 {[%clk 0:02:42]} 14. Bd2 {[%clk 0:02:17]}  O-O {[%clk 0:02:40]} 15. bxc4 {[%clk 0:02:06]}  dxc4 {[%clk 0:02:39]} 16. Qe2 {[%clk 0:01:59]}  Nd5 {[%clk 0:02:25]} 17. Nxd5 {[%clk 0:01:50]}  Bxd2 {[%clk 0:02:23]} 18. Nxb6 {[%clk 0:01:41]}  Qxb6 {[%clk 0:02:16]} 19. Nxc4 {[%clk 0:01:33]}  Qb7 {[%clk 0:02:13]} 20. Nxd2 {[%clk 0:01:22]}  Bxg2 {[%clk 0:02:12]} 21. Rfb1 {[%clk 0:01:19]}  Qa8 {[%clk 0:02:12]} 22. Qg4 {[%clk 0:01:16]}  Rc6 {[%clk 0:02:06]} 23. Qxg2 {[%clk 0:00:53]}  Rg6 {[%clk 0:02:05]} 24. Qxg6 {[%clk 0:00:46]}  fxg6 {[%clk 0:02:04]} 25. Rb6 {[%clk 0:00:43]}  Qd8 {[%clk 0:02:03]} 26. Nf1 {[%clk 0:00:37]}  Qxb6 {[%clk 0:02:02]} 0-1


[Site "https://www.chess.com"]

[Event "Titled Tuesday Blitz January 31 Early 2023"]
[White "Bilan, Danila"]
[Black "Sipila, Vilka"]
[WhiteFideId "24161918"]
[BlackFideId "505455"]
[WhiteElo "2303"]
[BlackElo "2427"]
[Result "0-1"]
[Round "04"]
[TimeControl "180+2"]
[Date "2023.01.31"]
[WhiteClock "0:00:10"]
[BlackClock "0:02:25"]

1. d4 {[%clk 0:03:00]}  f5 {[%clk 0:03:00]} 2. Nf3 {[%clk 0:03:00]}  Nf6 {[%clk 0:03:00]} 3. g3 {[%clk 0:02:58]}  g6 {[%clk 0:03:01]} 4. Bg2 {[%clk 0:02:59]}  Bg7 {[%clk 0:03:02]} 5. O-O {[%clk 0:03:00]}  O-O {[%clk 0:03:03]} 6. c4 {[%clk 0:02:58]}  d6 {[%clk 0:03:04]} 7. Nc3 {[%clk 0:02:57]}  c6 {[%clk 0:03:04]} 8. d5 {[%clk 0:02:45]}  e5 {[%clk 0:03:04]} 9. dxe6 {[%clk 0:02:41]}  Bxe6 {[%clk 0:03:03]} 10. Bf4 {[%clk 0:02:27]}  Bxc4 {[%clk 0:02:49]} 11. Bxd6 {[%clk 0:02:15]}  Re8 {[%clk 0:02:46]} 12. Re1 {[%clk 0:01:54]}  Nd5 {[%clk 0:02:43]} 13. Bxb8 {[%clk 0:01:06]}  Nxc3 {[%clk 0:02:42]} 14. bxc3 {[%clk 0:00:55]}  Rxb8 {[%clk 0:02:41]} 15. Qa4 {[%clk 0:00:20]}  b5 {[%clk 0:02:32]} 16. Qxa7 {[%clk 0:00:17]}  Bxc3 {[%clk 0:02:26]} 17. Red1 {[%clk 0:00:13]}  Qe7 {[%clk 0:02:25]} 18. Qxe7 {[%clk 0:00:10]}  Rxe7 {[%clk 0:02:25]} 0-1


[Site "https://www.chess.com"]